bitfinex/quotes_ETHUSD_20230109
["timestamp","ask_amount","ask_price","bid_price","bid_amount"]
[1673279840222,28.36661814,1338.2,1337.7,11.04126]
[1673279840223,32.16427878,1338.2,1337.7,3.566]
[1673279840380,33.93827878,1338.2,1337.6,14.1345]
[1673279840591,3.79766064,1338.1,1337.6,36.56235]
[1673279840811,3.37976606,1338.0,1337.6,36.56235]
[1673279841042,0.05,1337.8,1337.6,22.49385]
[1673279841252,3.37976606,1338.0,1337.6,22.49385]
[1673279841253,6.39776606,1338.0,1337.9,0.05]
[1673279841546,25.2091067,1338.0,1337.9,0.05]
[1673279841755,17.7352667,1338.0,1337.9,0.05]
[1673279842113,31.6802214,1338.0,1337.9,0.05]
[1673279842332,35.1802214,1338.0,1337.9,0.05]
[1673279842480,43.2147614,1338.0,1337.9,0.05]
[1673279842699,35.7409214,1338.0,1337.9,0.05]
[1673279842943,38.5176467,1338.0,1337.9,0.05]
[1673279843181,31.0438067,1338.0,1337.9,0.05]
[1673279843408,3.5,1337.9,1337.4,7.54284]
[1673279843546,6.79766064,1337.8,1337.4,15.01974]
[1673279843759,6.86366064,1337.8,1337.4,22.49693]
[1673279843974,0.5609,1337.7,1337.4,22.49693]
[1673279844435,7.42446064,1337.8,1337.4,15.01974]
[1673279844641,0.74244606,1337.7,1337.4,22.49693]
[1673279845275,3.105,1337.5,1337.4,0.066]
[1673279845493,3.105,1337.5,1337.3,1.329]
[1673279845770,3.105,1337.5,1337.3,15.73549847]
[1673279846093,3.105,1337.5,1337.4,3.5]
[1673279846314,3.105,1337.5,1337.3,8.32391847]
[1673279846541,3.105,1337.5,1337.3,0.84647847]
[1673279846763,3.105,1337.5,1337.3,0.78047847]
[1673279847147,1.531,1337.5,1337.3,0.78047847]
[1673279847360,6.87166064,1337.6,1337.3,7.47769]
[1673279847636,9.73055455,1337.6,1337.3,15.0215]
[1673279847842,0.066,1337.6,1337.3,15.0215]
[1673279847996,14.10282,1337.8,1337.4,3.5]
[1673279848207,3.79766064,1337.7,1337.4,3.5]
[1673279848417,3.79766064,1337.7,1337.4,18.45422]
[1673279848674,3.79766064,1337.7,1337.4,18.52022]
[1673279848984,22.91798,1337.8,1337.4,25.99741]
[1673279848985,3.6268,1337.8,1337.4,25.99741]
[1673279849212,3.5608,1337.8,1337.4,26.75376718]
[1673279849416,22.30843064,1337.8,1337.4,0.82235718]
[1673279849737,3.79766064,1337.7,1337.3,12.37671]
[1673279849922,3.79766064,1337.6,1337.3,12.37671]
[1673279850262,3.79766064,1337.6,1337.3,27.33186]
[1673279850473,2.29684306,1337.7,1337.3,28.11234991]
[1673279850686,13.5040537,1337.7,1337.3,20.63459991]
[1673279851023,6.0945037,1337.7,1337.3,28.11234991]
[1673279851423,21.0455337,1337.7,1337.3,8.32388991]
[1673279851581,25.924,1337.5,1337.3,23.27938991]
[1673279851792,25.99,1337.5,1337.3,23.27938991]
[1673279852034,25.99,1337.5,1337.3,8.32388991]
[1673279852245,40.94338,1337.5,1337.3,0.84648991]
[1673279852459,3.79766064,1337.4,1337.3,0.78048991]
[1673279853777,2.6841986,1337.4,1337.3,0.78048991]
[1673279854983,28.589,1337.5,1337.3,0.78048991]
[1673279855157,32.38666064,1337.5,1337.3,8.20823991]
[1673279855361,3.79766064,1337.4,1337.3,0.79648991]
[1673279855695,11.27485064,1337.4,1337.3,0.73048991]
[1673279855900,3.86366064,1337.4,1337.3,0.73048991]
[1673279856117,3.79766064,1337.4,1337.3,0.73048991]
[1673279856661,25.99,1337.5,1337.3,0.73048991]
[1673279856819,25.99,1337.5,1337.3,23.16373991]
[1673279857029,25.99,1337.5,1337.4,3.5]
[1673279857491,25.99,1337.5,1337.3,0.79648991]
[1673279857710,25.99,1337.5,1337.3,0.73048991]
[1673279857906,33.46669,1337.5,1337.3,0.73048991]
[1673279858108,40.94338,1337.5,1337.3,0.73048991]
[1673279858322,3.79766064,1337.4,1337.3,0.73048991]
[1673279858545,11.27485064,1337.4,1337.3,0.73048991]
[1673279858713,11.34085064,1337.4,1337.3,0.73048991]
[1673279859150,26.29523064,1337.4,1337.3,0.73048991]
[1673279859417,34.0082519,1337.4,1337.3,0.73048991]
[1673279859570,34.0082519,1337.4,1337.2,0.01983308]
[1673279859773,10.2426819,1337.4,1337.2,7.49812308]
[1673279859974,10.2426819,1337.4,1337.2,0.08583308]
[1673279859975,0.066,1337.4,1337.2,0.08583308]
[1673279860228,33.745192,1337.5,1337.2,0.01983308]
[1673279860229,41.288082,1337.5,1337.2,0.01983308]
[1673279860444,41.91974264,1337.5,1337.2,0.01983308]
[1673279860774,49.39663264,1337.5,1337.2,0.01983308]
[1673279861284,3.79766064,1337.4,1337.2,0.01983308]
[1673279861520,3.48476606,1337.3,1337.2,0.01983308]
[1673279861661,29.7156767,1337.3,1337.2,0.01983308]
[1673279861856,29.7816767,1337.3,1337.2,0.01983308]
[1673279863310,33.8426767,1337.3,1337.2,0.01983308]
[1673279863640,36.8426767,1337.3,1337.2,0.01983308]
[1673279864297,38.1826767,1337.3,1337.2,0.01983308]
[1673279864695,42.85121361,1337.3,1337.2,0.01983308]
[1673279865043,38.1826767,1337.3,1337.2,0.01983308]
[1673279865354,42.85024277,1337.3,1337.2,0.01983308]
[1673279865953,44.18324277,1337.3,1337.2,0.01983308]
[1673279866835,39.5156767,1337.3,1337.2,0.01983308]
[1673279867142,39.4656767,1337.3,1337.2,0.01983308]
[1673279867517,56.605824,1337.3,1337.2,0.01983308]
[1673279868419,56.605824,1337.3,1337.1,0.72053034]
[1673279868420,3.5,1337.2,1337.1,0.72053034]
[1673279868731,45.9168595,1337.2,1337.1,0.72053034]
[1673279868911,59.0189595,1337.2,1337.1,3.034e-05]
[1673279869546,60.3589595,1337.2,1337.1,3.034e-05]
[1673279870332,59.0249595,1337.2,1337.1,3.034e-05]
[1673279870612,46.41517304,1337.2,1337.1,3.034e-05]
[1673279870773,35.43686304,1337.2,1337.1,3.034e-05]
[1673279870984,4.42476064,1337.2,1337.1,3.034e-05]
[1673279871201,0.627,1337.3,1337.1,3.034e-05]
[1673279871541,4.35866064,1337.3,1337.1,3.034e-05]
[1673279871727,3.79766064,1337.2,1337.1,3.034e-05]
[1673279872802,0.002,1337.2,1337.1,3.034e-05]
[1673279872979,0.627,1337.4,1337.1,16.29677034]
[1673279873190,0.627,1337.4,1337.1,23.84164034]
[1673279873191,3.79766064,1337.4,1337.1,23.84164034]
[1673279873983,3.79766064,1337.4,1337.1,8.88390034]
[1673279874156,24.01050573,1337.5,1337.1,23.84164034]
[1673279874499,3.0,1337.4,1337.1,2.16138752]
[1673279874710,3.0,1337.4,1337.1,2.09538752]
[1673279874867,24.01050573,1337.5,1337.1,2.09538752]
[1673279875079,24.01050573,1337.5,1337.2,14.95662]
[1673279875323,24.01050573,1337.5,1337.2,7.54431]
[1673279875821,24.01050573,1337.5,1337.2,11.04431]
[1673279876029,24.01050573,1337.5,1337.2,27.34093]
[1673279876280,24.01050573,1337.5,1337.2,4.906]
[1673279876499,24.01050573,1337.5,1337.2,4.84]
[1673279876818,24.01050573,1337.5,1337.1,4.32238752]
[1673279876819,22.43157,1337.4,1337.1,4.32238752]
[1673279876967,22.49757,1337.4,1337.1,3.50003034]
[1673279877620,22.49757,1337.4,1337.1,3.034e-05]
[1673279877848,7.54319,1337.4,1337.1,3.034e-05]
[1673279878288,0.066,1337.4,1337.1,7.47874034]
[1673279878468,42.76205637,1337.5,1337.1,15.02361034]
[1673279878686,50.23920637,1337.5,1337.1,0.06603034]
[1673279879019,50.23920637,1337.5,1337.1,3.034e-05]
[1673279879412,50.23920637,1337.5,1337.1,7.47882034]
[1673279879755,50.23920637,1337.5,1337.1,0.06603034]
[1673279879959,50.23920637,1337.5,1337.1,7.47875034]
[1673279880177,50.23920637,1337.5,1337.1,7.54475034]
[1673279880411,56.68034201,1337.5,1337.1,15.02362034]
[1673279880777,56.68034201,1337.5,1337.1,7.54475034]
[1673279881194,56.68034201,1337.5,1337.1,15.02362034]
[1673279881420,56.68034201,1337.5,1337.1,7.54475034]
[1673279881667,56.68034201,1337.5,1337.1,0.06603034]
[1673279881874,56.68034201,1337.5,1337.1,3.034e-05]
[1673279881875,14.35569484,1337.4,1337.1,3.034e-05]
[1673279882101,26.23091064,1337.3,1337.1,3.034e-05]
[1673279882294,26.23259064,1337.2,1337.1,3.034e-05]
[1673279882501,24.87984193,1337.2,1337.1,3.034e-05]
[1673279882680,31.11560112,1337.2,1337.1,3.034e-05]
[1673279882895,34.61560112,1337.2,1337.1,3.034e-05]
[1673279883368,36.39460112,1337.2,1337.1,3.034e-05]
[1673279883555,41.0557384,1337.2,1337.1,3.034e-05]
[1673279883748,3.6271,1337.2,1337.1,3.034e-05]
[1673279883965,3.5611,1337.2,1337.1,3.034e-05]
[1673279884391,11.03941,1337.2,1337.1,3.034e-05]
[1673279884603,11.10541,1337.2,1337.1,3.034e-05]
[1673279884789,26.06203,1337.2,1337.1,3.034e-05]
[1673279885000,29.26718809,1337.2,1337.1,3.034e-05]
[1673279885322,14.31056809,1337.2,1337.1,3.034e-05]
[1673279885530,3.6271,1337.2,1337.1,3.034e-05]
[1673279885737,25.924,1337.3,1337.1,3.034e-05]
[1673279886271,32.84082,1337.3,1337.1,3.034e-05]
[1673279886821,25.363,1337.3,1337.1,3.034e-05]
[1673279887431,47.79659,1337.3,1337.1,3.034e-05]
[1673279887644,47.79625,1337.3,1337.1,3.034e-05]
[1673279887988,56.72966964,1337.3,1337.1,3.034e-05]
[1673279888371,3.79766064,1337.2,1337.1,3.034e-05]
[1673279888575,30.29369064,1337.2,1337.1,3.034e-05]
[1673279888838,33.35969064,1337.2,1337.1,3.034e-05]
[1673279889051,40.6654106,1337.2,1337.1,3.034e-05]
[1673279893957,44.12191535,1337.2,1337.1,3.034e-05]
[1673279894414,42.4524106,1337.2,1337.1,3.034e-05]
[1673279896264,48.77756983,1337.2,1337.1,3.034e-05]
[1673279896477,47.10806508,1337.2,1337.1,3.034e-05]
[1673279896716,42.4524106,1337.2,1337.1,3.034e-05]
[1673279896926,46.34432625,1337.2,1337.1,3.034e-05]
[1673279897137,63.47680436,1337.2,1337.1,3.034e-05]
[1673279897349,61.80729961,1337.2,1337.1,3.034e-05]
[1673279897786,63.48345194,1337.2,1337.1,3.034e-05]
[1673279897971,50.86129961,1337.2,1337.1,3.034e-05]
[1673279898184,47.31889539,1337.2,1337.1,3.034e-05]
[1673279898405,47.3195211,1337.2,1337.1,3.034e-05]
[1673279898598,48.42054276,1337.2,1337.1,3.034e-05]
[1673279898785,61.5820202,1337.2,1337.1,3.034e-05]
[1673279899002,59.3596093,1337.2,1337.1,3.034e-05]
[1673279899654,62.37563186,1337.2,1337.1,3.034e-05]
[1673279900091,64.16263186,1337.2,1337.1,3.034e-05]
[1673279900346,3.5,1337.0,1336.8,0.76377358]
[1673279900515,40.18130809,1336.9,1336.8,0.76377358]
[1673279900707,44.88236243,1336.9,1336.8,0.76377358]
[1673279901023,41.3674039,1336.9,1336.8,0.76377358]
[1673279901230,24.22865,1336.8,1336.7,0.0462446]
[1673279901474,39.61175315,1336.8,1336.7,0.0462446]
[1673279901878,37.93491803,1336.8,1336.7,0.0462446]
[1673279902507,39.61175315,1336.8,1336.7,0.0462446]
[1673279903380,3.5,1336.7,1336.6,0.04480796]
[1673279903647,34.52799064,1336.7,1336.6,7.96e-06]
[1673279903888,40.73320544,1336.7,1336.6,7.96e-06]
[1673279904175,22.83228544,1336.7,1336.6,7.96e-06]
[1673279904414,15.35117544,1336.7,1336.6,7.96e-06]
[1673279904632,9.21196064,1336.7,1336.6,7.96e-06]
[1673279904819,1.9518692,1336.7,1336.6,7.96e-06]
[1673279905029,3.066,1336.9,1336.7,1.9145689]
[1673279905245,23.52971064,1336.9,1336.7,1.9145689]
[1673279905451,23.59571064,1336.9,1336.7,1.9145689]
[1673279905899,3.79766064,1336.8,1336.7,1.9145689]
[1673279906114,18.75876064,1336.8,1336.7,1.9145689]
[1673279906302,3.066,1336.8,1336.7,1.9145689]
[1673279906481,14.27821064,1336.8,1336.7,1.9145689]
[1673279906696,21.82476064,1336.8,1336.7,1.9145689]
[1673279906937,3.066,1336.8,1336.7,1.9145689]
[1673279907144,3.0,1336.8,1336.7,1.9145689]
[1673279907359,12.31801,1336.9,1336.7,1.9145689]
[1673279907570,21.82396064,1336.9,1336.7,1.9145689]
[1673279908113,3.79766064,1336.8,1336.7,1.9145689]
[1673279908424,29.23931064,1336.8,1336.7,1.9145689]
[1673279908589,6.86366064,1336.8,1336.7,1.9145689]
[1673279909425,21.82476064,1336.8,1336.7,1.9145689]
[1673279909690,26.30531064,1336.8,1336.7,1.9145689]
[1673279910006,11.34421064,1336.8,1336.7,1.9145689]
[1673279910472,3.86366064,1336.8,1336.7,1.9145689]
[1673279910842,26.23931064,1336.8,1336.7,1.9145689]
[1673279910999,26.30531064,1336.8,1336.7,1.9145689]
[1673279911712,29.6838427,1336.8,1336.7,1.9145689]
[1673279912260,26.30531064,1336.8,1336.7,1.9145689]
[1673279912695,29.30531064,1336.8,1336.7,1.9145689]
[1673279912909,6.86366064,1336.8,1336.7,1.9145689]
[1673279913105,21.82476064,1336.8,1336.7,1.9145689]
[1673279913314,29.30531064,1336.8,1336.7,1.9145689]
[1673279913542,34.9475427,1336.8,1336.7,1.9145689]
[1673279914065,33.1625427,1336.8,1336.7,1.9145689]
[1673279916056,36.6625427,1336.8,1336.7,1.9145689]
[1673279916514,50.9245427,1336.8,1336.7,1.9145689]
[1673279916742,51.4857427,1336.8,1336.7,1.9145689]
[1673279917243,53.16257782,1336.8,1336.7,1.9145689]
[1673279917669,37.2237427,1336.8,1336.7,1.9145689]
[1673279918196,38.90057782,1336.8,1336.7,1.9145689]
[1673279918354,3.066,1336.8,1336.7,1.9145689]
[1673279918563,4.74283512,1336.9,1336.7,1.9145689]
[1673279918778,3.0,1336.9,1336.7,1.9145689]
[1673279919307,26.38883512,1337.0,1336.7,16.8767489]
[1673279919514,24.712,1337.0,1336.7,9.4616389]
[1673279919745,24.712,1337.0,1336.7,1.9805689]
[1673279919935,24.712,1337.0,1336.7,1.9145689]
[1673279920482,3.79766064,1336.9,1336.7,1.9145689]
[1673279920712,3.79766064,1336.8,1336.7,1.9145689]
[1673279921105,11.27821064,1336.8,1336.7,1.9145689]
[1673279921430,18.82476064,1336.8,1336.7,1.9145689]
[1673279921827,3.86366064,1336.8,1336.7,1.89500812]
[1673279922038,18.75876064,1336.8,1336.7,1.89500812]
[1673279922284,14.94752251,1336.8,1336.7,1.89500812]
[1673279922499,7.46697251,1336.8,1336.7,1.89500812]
[1673279922672,33.78586064,1336.8,1336.7,1.89500812]
[1673279924134,26.30531064,1336.8,1336.7,1.89500812]
[1673279925079,29.30531064,1336.8,1336.7,1.89500812]
[1673279925295,34.48214576,1336.8,1336.7,1.89500812]
[1673279925711,36.83034576,1336.8,1336.7,1.89500812]
[1673279925955,39.91091986,1336.8,1336.7,1.89500812]
[1673279926490,38.12391986,1336.8,1336.7,1.89500812]
[1673279926666,16.58224576,1336.8,1336.7,1.89500812]
[1673279926881,22.38596064,1336.8,1336.7,1.89500812]
[1673279927089,31.54334576,1336.8,1336.7,1.89500812]
[1673279930143,26.30531064,1336.8,1336.7,1.89500812]
[1673279930488,27.98214576,1336.8,1336.7,1.89500812]
[1673279930647,32.20708595,1336.8,1336.7,1.89500812]
[1673279930857,41.87631317,1336.8,1336.7,1.89500812]
[1673279931132,39.64303409,1336.8,1336.7,1.89500812]
[1673279931295,42.64303409,1336.8,1336.7,1.89500812]
[1673279932165,45.43751317,1336.8,1336.7,1.89500812]
[1673279932399,39.12151317,1336.8,1336.7,1.89500812]
[1673279933030,37.44467505,1336.8,1336.7,1.89500812]
[1673279933170,39.12151317,1336.8,1336.7,1.89500812]
[1673279933381,23.15293409,1336.8,1336.7,1.89500812]
[1673279933594,40.90851317,1336.8,1336.7,1.89500812]
[1673279934023,31.07976317,1336.8,1336.7,1.89500812]
[1673279934230,16.11866317,1336.8,1336.7,1.89500812]
[1673279934574,16.5797939,1336.8,1336.7,1.89500812]
[1673279934789,24.0603439,1336.8,1336.7,1.89500812]
[1673279935108,34.33537298,1336.8,1336.7,1.89500812]
[1673279935505,38.40014397,1336.8,1336.7,1.89500812]
[1673279935747,36.16098972,1336.8,1336.7,1.89500812]
[1673279935955,37.93687751,1336.8,1336.7,1.89500812]
[1673279936114,6.65813972,1336.8,1336.7,1.89500812]
[1673279936326,1.74591313,1336.8,1336.7,24.33833812]
[1673279936576,3.98589702,1336.9,1336.7,1.96100812]
[1673279936786,3.91989702,1336.9,1336.7,9.37599812]
[1673279937006,3.91989702,1336.9,1336.7,9.44199812]
[1673279937227,1.67991313,1336.9,1336.7,16.92310812]
[1673279937528,1.67991313,1336.9,1336.7,9.44199812]
[1673279937690,1.67991313,1336.8,1336.7,1.96100812]
[1673279937902,1.67991313,1336.8,1336.7,1.89500812]
[1673279939088,9.16046313,1336.8,1336.7,1.89500812]
[1673279939316,9.22646313,1336.8,1336.7,1.89500812]
[1673279939472,1.74591313,1336.8,1336.7,1.89500812]
[1673279939844,12.95812377,1336.8,1336.7,1.89500812]
[1673279939998,20.50467377,1336.8,1336.7,1.89500812]
[1673279940481,27.98522377,1336.8,1336.7,1.89500812]
[1673279940645,29.28662276,1336.8,1336.7,1.89500812]
[1673279940841,21.80607276,1336.8,1336.7,1.89500812]
[1673279941049,16.56550665,1336.8,1336.7,1.89500812]
[1673279941309,9.08495665,1336.8,1336.7,1.89500812]
[1673279941620,7.78355766,1336.8,1336.7,1.89500812]
[1673279942031,3.98589702,1336.8,1336.7,1.89500812]
[1673279942222,3.98589702,1336.9,1336.7,9.37611812]
[1673279942435,1.67991313,1336.9,1336.7,1.96100812]
[1673279942673,1.67991313,1336.9,1336.7,1.89500812]
[1673279943523,9.15993313,1336.9,1336.7,1.89500812]
[1673279943702,9.22593313,1336.9,1336.7,1.89500812]
[1673279944419,22.74356766,1336.9,1336.7,1.89500812]
[1673279944660,22.74353766,1336.9,1336.7,1.89500812]
[1673279944842,30.22352766,1336.9,1336.7,1.89500812]
[1673279945049,36.28992833,1336.9,1336.7,1.89500812]
[1673279945936,28.80993833,1336.9,1336.7,1.89500812]
[1673279946091,1.67991313,1336.8,1336.7,1.89500812]
[1673279946305,24.12156313,1336.8,1336.7,1.89112588]
[1673279946514,24.18756313,1336.8,1336.7,1.89112588]
[1673279946771,21.36362087,1336.8,1336.7,1.89112588]
[1673279947144,34.8818154,1336.8,1336.7,1.89112588]
[1673279947359,27.4012654,1336.8,1336.7,1.89112588]
[1673279947571,19.9207154,1336.8,1336.7,1.89112588]
[1673279947804,35.4430154,1336.8,1336.7,1.89112588]
[1673279947996,34.8818154,1336.8,1336.7,1.89112588]
[1673279948228,35.99638135,1336.8,1336.7,1.89112588]
[1673279948419,39.55758135,1336.8,1336.7,1.89112588]
[1673279948819,38.99638135,1336.8,1336.7,1.89112588]
[1673279949083,37.31759746,1336.8,1336.7,1.89112588]
[1673279949753,34.52311838,1336.8,1336.7,1.89112588]
[1673279949971,37.86363367,1336.8,1336.7,1.89112588]
[1673279950405,3.5,1336.7,1336.6,7.96e-06]
[1673279950706,42.29250615,1336.7,1336.6,7.96e-06]
[1673279950864,42.35850615,1336.7,1336.6,7.96e-06]
[1673279951538,39.55695401,1336.7,1336.6,7.96e-06]
[1673279951716,42.8974693,1336.7,1336.6,7.96e-06]
[1673279952138,47.4264693,1336.7,1336.6,7.96e-06]
[1673279952341,3.5,1336.6,1336.4,0.00396457]
[1673279952558,11.06895926,1336.5,1336.4,0.00396457]
[1673279952808,3.5,1336.4,1336.2,0.01878659]
[1673279953021,27.92844209,1336.3,1336.2,0.01878659]
[1673279953176,20.51110209,1336.3,1336.2,0.01878659]
[1673279953389,5.54442209,1336.3,1336.1,0.68151783]
[1673279953640,3.79766064,1336.2,1336.1,0.68151783]
[1673279954170,24.19678145,1336.3,1336.1,0.68151783]
[1673279954171,7.54934,1336.3,1336.1,0.68151783]
[1673279954482,11.34702064,1336.3,1336.1,0.68151783]
[1673279954695,18.83038064,1336.3,1336.1,0.68151783]
[1673279954913,21.85390938,1336.3,1336.1,0.68151783]
[1673279955429,29.33726938,1336.3,1336.1,0.68151783]
[1673279955861,3.79766064,1336.2,1336.1,0.68151783]
[1673279956031,26.24936064,1336.2,1336.1,0.68151783]
[1673279956237,0.066,1336.2,1336.1,0.68151783]
[1673279956464,22.51679,1336.3,1336.1,0.68151783]
[1673279956676,26.31445064,1336.3,1336.1,0.68151783]
[1673279956957,3.79766064,1336.2,1336.1,0.68151783]
[1673279957434,11.28156064,1336.2,1336.1,0.68151783]
[1673279957649,0.066,1336.2,1336.1,0.68151783]
[1673279957951,39.08103001,1336.3,1336.1,0.68151783]
[1673279958261,7.4839,1336.2,1336.1,0.68151783]
[1673279958432,15.0338,1336.2,1336.1,0.68151783]
[1673279958646,0.066,1336.2,1336.1,0.68151783]
[1673279958854,7.4839,1336.2,1336.1,0.68151783]
[1673279959104,26.31536064,1336.2,1336.1,0.68151783]
[1673279959274,3.86366064,1336.2,1336.1,0.68151783]
[1673279959484,18.76546064,1336.2,1336.1,0.68151783]
[1673279959698,11.34756064,1336.2,1336.1,0.68151783]
[1673279960348,11.34756064,1336.2,1336.1,23.13489783]
[1673279960349,0.066,1336.2,1336.1,23.13489783]
[1673279960589,24.11400001,1336.3,1336.1,15.71643783]
[1673279960741,29.74936064,1336.2,1336.1,0.74751783]
[1673279960950,26.31536064,1336.2,1336.1,0.68151783]
[1673279961164,0.066,1336.2,1336.1,0.68151783]
[1673279961375,24.11400001,1336.3,1336.1,0.68151783]
[1673279961618,24.11400001,1336.3,1336.2,1.342]
[1673279961832,24.11400001,1336.3,1336.2,4.842]
[1673279962040,24.11400001,1336.3,1336.2,1.342]
[1673279963270,24.11400001,1336.3,1336.2,4.842]
[1673279963518,24.11400001,1336.3,1336.2,1.342]
[1673279963731,24.11400001,1336.3,1336.1,2.08051783]
[1673279963904,24.11400001,1336.3,1336.2,1.337]
[1673279964102,24.11400001,1336.3,1336.2,10.3929]
[1673279964312,24.11400001,1336.3,1336.2,10.4589]
[1673279964570,24.11400001,1336.3,1336.2,2.975]
[1673279964733,24.16400001,1336.3,1336.2,6.409]
[1673279964939,24.11400001,1336.3,1336.2,2.745]
[1673279965201,24.11400001,1336.3,1336.2,2.679]
[1673279965784,24.11400001,1336.3,1336.2,25.1307]
[1673279966048,24.11400001,1336.3,1336.2,47.1967]
[1673279966049,22.1328683,1336.3,1336.2,47.1967]
[1673279966358,22.1328683,1336.3,1336.2,42.7128]
[1673279966578,22.1328683,1336.3,1336.2,50.1967]
[1673279966779,22.1328683,1336.3,1336.2,50.1947]
[1673279966936,22.1328683,1336.3,1336.2,36.1967]
[1673279967158,22.1328683,1336.3,1336.2,28.7128]
[1673279967369,22.1328683,1336.3,1336.2,36.1967]
[1673279968212,10.5378683,1336.3,1336.2,45.92951431]
[1673279968487,6.0480383,1336.3,1336.2,41.33636064]
[1673279968697,1.3606083,1336.3,1336.2,45.90936981]
[1673279968891,0.066,1336.7,1336.3,3.5]
[1673279969222,2.79866155,1336.8,1336.6,7.48166]
[1673279969434,2.79866155,1336.8,1336.6,0.066]
[1673279969435,1.1179001,1336.7,1336.6,0.066]
[1673279969609,1.1179001,1336.7,1336.5,23.84588]
[1673279970014,1.1179001,1336.7,1336.5,16.36405]
[1673279970888,1.1179001,1336.7,1336.5,8.88183]
[1673279971109,1.1179001,1336.7,1336.5,16.36405]
[1673279971694,1.1199001,1336.7,1336.5,16.36205]
[1673279971904,1.1199001,1336.7,1336.5,8.88183]
[1673279971905,1.1179001,1336.7,1336.5,8.88183]
[1673279972123,17.76088155,1336.7,1336.5,1.4]
[1673279972451,17.76088155,1336.7,1336.5,1.334]
[1673279972452,6.603,1336.6,1336.5,1.334]
[1673279972643,6.669,1336.6,1336.5,1.334]
[1673279973315,7.7869001,1336.6,1336.5,8.81622]
[1673279973545,6.669,1336.6,1336.5,8.88222]
[1673279973831,6.669,1336.6,1336.5,23.84666]
[1673279974474,6.669,1336.6,1336.5,1.4]
[1673279974637,6.669,1336.6,1336.5,1.334]
[1673279975109,7.7869001,1336.6,1336.5,1.334]
[1673279975824,22.7502201,1336.6,1336.5,1.334]
[1673279976383,22.7502201,1336.6,1336.3,16.88206]
[1673279976384,15.2685601,1336.6,1336.3,16.88206]
[1673279976595,15.2686401,1336.6,1336.3,24.3654]
[1673279976806,7.7869001,1336.6,1336.3,24.3654]
[1673279977115,15.2686601,1336.6,1336.3,16.3654]
[1673279977442,15.2686601,1336.6,1336.3,8.88206]
[1673279977596,22.7504201,1336.6,1336.3,1.399]
[1673279977956,15.2686601,1336.6,1336.3,4.833]
[1673279978136,22.7502201,1336.6,1336.3,4.833]
[1673279978343,22.7502201,1336.6,1336.4,1.342]
[1673279978697,30.2318801,1336.6,1336.4,1.342]
[1673279979008,7.48278,1336.4,1336.3,0.066]
[1673279979217,0.066,1336.4,1336.2,43.89166]
[1673279979380,16.1489401,1336.5,1336.2,42.54966]
[1673279979591,16.1489401,1336.5,1336.2,35.066]
[1673279979851,16.1489401,1336.5,1336.2,42.3478]
[1673279980060,1.1839001,1336.5,1336.3,3.5]
[1673279980378,1.1179001,1336.5,1336.3,3.5]
[1673279980544,8.6002001,1336.5,1336.3,3.5]
[1673279980757,8.6662001,1336.5,1336.2,49.83349]
[1673279981113,22.45002,1336.3,1336.2,34.866]
[1673279981325,22.51602,1336.3,1336.2,34.866]
[1673279982323,7.54934,1336.3,1336.2,34.866]
[1673279982865,26.31368064,1336.3,1336.2,0.066]
[1673279983060,11.34700064,1336.3,1336.1,0.68151783]
[1673279983270,16.68583596,1336.3,1336.1,0.68151783]
[1673279983529,0.6274,1336.3,1336.2,3.5]
[1673279983747,7.1674,1336.3,1336.2,3.5]
[1673279983901,6.672,1336.3,1336.2,3.5]
[1673279984338,6.672,1336.3,1336.1,11.73197783]
[1673279984589,6.672,1336.3,1336.2,3.5]
[1673279984901,6.672,1336.3,1336.2,12.3259]
[1673279985055,6.672,1336.3,1336.2,11.0499]
[1673279985515,6.672,1336.3,1336.2,3.566]
[1673279985726,6.672,1336.3,1336.2,3.5]
[1673279986964,6.672,1336.3,1336.1,11.73196783]
[1673279987392,6.672,1336.3,1336.1,4.24751783]
[1673279987611,7.7899001,1336.3,1336.1,4.18151783]
[1673279987914,7.7899001,1336.3,1336.1,19.15028783]
[1673279988129,6.672,1336.3,1336.1,26.70074783]
[1673279988687,6.672,1336.3,1336.2,16.3048]
[1673279989002,6.672,1336.3,1336.2,8.8869]
[1673279989847,14.15534,1336.3,1336.2,1.403]
[1673279990050,7.7899001,1336.3,1336.1,0.68151783]
[1673279990529,9.47066155,1336.3,1336.1,0.68151783]
[1673279990743,7.7899001,1336.3,1336.1,0.68151783]
[1673279991159,7.7899001,1336.3,1336.1,15.65038783]
[1673279991392,7.7899001,1336.3,1336.1,15.71619783]
[1673279991627,7.7899001,1336.3,1336.1,8.23173783]
[1673279991794,7.7899001,1336.3,1336.1,0.74751783]
[1673279992000,7.7899001,1336.3,1336.1,0.68151783]
[1673279992571,7.7899001,1336.3,1336.1,8.16596783]
[1673279992781,7.7899001,1336.3,1336.1,8.23196783]
[1673279993000,22.7566701,1336.3,1336.1,0.74751783]
[1673279993172,7.7899001,1336.3,1336.1,8.16595783]
[1673279993367,15.2732501,1336.3,1336.1,0.74751783]
[1673279993577,7.7899001,1336.3,1336.1,0.68151783]
[1673279993827,7.7899001,1336.3,1336.1,15.65041783]
[1673279994061,7.7899001,1336.3,1336.1,43.23195783]
[1673279994365,7.7899001,1336.3,1336.1,35.74751783]
[1673279994730,6.672,1336.3,1336.1,58.20085783]
[1673279995147,7.7899001,1336.3,1336.2,3.5]
[1673279995417,7.7899001,1336.3,1336.2,25.9517]
[1673279995572,7.7899001,1336.3,1336.2,26.0177]
[1673279996036,7.7899001,1336.3,1336.2,3.566]
[1673279996251,22.7565801,1336.3,1336.1,35.74751783]
[1673279996465,15.8346401,1336.3,1336.1,35.74751783]
[1673279996621,15.2732401,1336.3,1336.1,35.74751783]
[1673279996833,22.7565801,1336.3,1336.1,35.74751783]
[1673279997053,30.2399201,1336.3,1336.1,35.74751783]
[1673279997502,7.7899001,1336.3,1336.1,35.74751783]
[1673279997898,15.2732701,1336.3,1336.1,35.74751783]
[1673279998091,16.95403155,1336.3,1336.1,35.74751783]
[1673279998568,16.95403155,1336.3,1336.1,50.71636783]
[1673279998569,9.47066155,1336.3,1336.1,50.71636783]
[1673279998726,16.95403155,1336.3,1336.1,35.74751783]
[1673279998939,9.47066155,1336.3,1336.1,35.74751783]
[1673279999182,16.95403155,1336.3,1336.1,35.74751783]
[1673279999361,24.43737155,1336.3,1336.1,35.74751783]
[1673279999845,31.92071155,1336.3,1336.1,35.74751783]
[1673280000014,16.0857001,1336.2,1336.1,35.74751783]
[1673280000260,16.07649224,1336.2,1336.1,35.74751783]
[1673280000411,8.64459224,1336.2,1336.1,35.74751783]
[1673280001071,7.52409,1336.2,1336.1,35.74751783]
[1673280001282,0.066,1336.2,1336.1,35.74751783]
[1673280001509,8.35275337,1336.3,1336.1,35.74751783]